[Event "January 2 Late 2024"]
[Site "https://www.chess.com"]
[Date "2024.01.02"]
[Round "10"]
[White "Zomorrodian, Eilia"]
[Black "Seemann, Jakub"]
[Result "0-1"]
[Board "41"]
[TimeControl "180+1"]
[WhiteFideId "12551805"]
[BlackFideId "21874697"]
[WhiteElo "2600"]
[BlackElo "2792"]
[WhiteTeam "CAN"]
[BlackTeam "POL"]
[WhiteClock "0:00:58"]
[BlackClock "0:02:07"]

1. e4 {[%clk 0:03:00]}  d5 {[%clk 0:02:59]} 2. exd5 {[%clk 0:02:59]}  Qxd5 {[%clk 0:03:00]} 3. Nc3 {[%clk 0:02:58]}  Qd8 {[%clk 0:03:00]} 4. Nf3 {[%clk 0:02:58]}  Nf6 {[%clk 0:03:01]} 5. d4 {[%clk 0:02:58]}  g6 {[%clk 0:03:01]} 6. Bc4 {[%clk 0:02:56]}  Bg7 {[%clk 0:03:02]} 7. h3 {[%clk 0:02:55]}  O-O {[%clk 0:03:02]} 8. O-O {[%clk 0:02:56]}  a6 {[%clk 0:03:03]} 9. a4 {[%clk 0:02:54]}  b6 {[%clk 0:03:01]} 10. Bg5 {[%clk 0:02:54]}  Bb7 {[%clk 0:03:02]} 11. Qe2 {[%clk 0:02:54]}  Nc6 {[%clk 0:03:01]} 12. Rad1 {[%clk 0:02:54]}  Nb4 {[%clk 0:02:59]} 13. Rfe1 {[%clk 0:02:52]}  e6 {[%clk 0:02:59]} 14. Ne5 {[%clk 0:02:51]}  Nbd5 {[%clk 0:02:54]} 15. Nxd5 {[%clk 0:02:40]}  exd5 {[%clk 0:02:55]} 16. Qf3 {[%clk 0:02:34]}  Qd6 {[%clk 0:02:53]} 17. Bf4 {[%clk 0:02:17]}  dxc4 {[%clk 0:02:36]} 18. Qxb7 {[%clk 0:02:15]}  Nd5 {[%clk 0:02:34]} 19. Bg3 {[%clk 0:02:10]}  Rfb8 {[%clk 0:02:25]} 20. Qc6 {[%clk 0:02:06]}  Qxc6 {[%clk 0:02:24]} 21. Nxc6 {[%clk 0:02:06]}  Re8 {[%clk 0:02:24]} 22. Be5 {[%clk 0:01:47]}  f6 {[%clk 0:02:23]} 23. Bg3 {[%clk 0:01:46]}  Kf7 {[%clk 0:02:23]} 24. c3 {[%clk 0:01:44]}  Re6 {[%clk 0:02:20]} 25. Nb4 {[%clk 0:01:31]}  Nxb4 {[%clk 0:02:12]} 26. cxb4 {[%clk 0:01:32]}  Rxe1+ {[%clk 0:02:08]} 27. Rxe1 {[%clk 0:01:33]}  c6 {[%clk 0:02:09]} 28. Bd6 {[%clk 0:01:23]}  Re8 {[%clk 0:02:06]} 29. Rxe8 {[%clk 0:01:12]}  Kxe8 {[%clk 0:02:07]} 30. b5 {[%clk 0:01:08]}  cxb5 {[%clk 0:02:06]} 31. axb5 {[%clk 0:01:08]}  axb5 {[%clk 0:02:07]} 32. Bc7 {[%clk 0:01:08]}  Kd7 {[%clk 0:02:07]} 33. Bxb6 {[%clk 0:01:09]}  Kc6 {[%clk 0:02:07]} 34. Bc5 {[%clk 0:01:08]}  Kd5 {[%clk 0:02:07]} 35. Kf1 {[%clk 0:01:02]}  f5 {[%clk 0:02:08]} 36. Ke2 {[%clk 0:01:00]}  Bxd4 {[%clk 0:02:08]} 37. Ba3 {[%clk 0:00:58]}  Bc5 {[%clk 0:02:07]} 0-1

[Event "January 2 Late 2024"]
[Site "https://www.chess.com"]
[Date "2024.01.02"]
[Round "10"]
[White "RaugintaBulba"]
[Black "Syaputra, Arifa Rizki"]
[Result "0-1"]
[Board "45"]
[TimeControl "180+1"]
[BlackFideId "7105100"]
[WhiteElo "2549"]
[BlackElo "2695"]
[BlackTeam "INA"]
[WhiteClock "0:00:00"]
[BlackClock "0:00:05"]

1. Nc3 {[%clk 0:02:55]}  Nf6 {[%clk 0:02:55]} 2. d4 {[%clk 0:02:55]}  d5 {[%clk 0:02:54]} 3. Bf4 {[%clk 0:02:55]}  c6 {[%clk 0:02:55]} 4. e3 {[%clk 0:02:54]}  Bf5 {[%clk 0:02:54]} 5. f3 {[%clk 0:02:54]}  h5 {[%clk 0:02:50]} 6. Bd3 {[%clk 0:02:50]}  Bxd3 {[%clk 0:02:46]} 7. Qxd3 {[%clk 0:02:51]}  e6 {[%clk 0:02:46]} 8. Nge2 {[%clk 0:02:48]}  Bd6 {[%clk 0:02:45]} 9. O-O-O {[%clk 0:02:45]}  Na6 {[%clk 0:02:35]} 10. a3 {[%clk 0:02:39]}  Nc7 {[%clk 0:02:25]} 11. e4 {[%clk 0:02:37]}  Bxf4+ {[%clk 0:02:18]} 12. Nxf4 {[%clk 0:02:36]}  dxe4 {[%clk 0:02:12]} 13. fxe4 {[%clk 0:02:34]}  e5 {[%clk 0:01:55]} 14. dxe5 {[%clk 0:02:24]}  Qxd3 {[%clk 0:01:55]} 15. Nxd3 {[%clk 0:02:12]}  Nd7 {[%clk 0:01:52]} 16. Rhf1 {[%clk 0:02:00]}  Ne6 {[%clk 0:01:49]} 17. Ne2 {[%clk 0:01:54]}  Rd8 {[%clk 0:01:16]} 18. Nef4 {[%clk 0:01:49]}  Ndc5 {[%clk 0:01:08]} 19. Nxc5 {[%clk 0:01:40]}  Rxd1+ {[%clk 0:01:02]} 20. Rxd1 {[%clk 0:01:30]}  Nxc5 {[%clk 0:01:03]} 21. b4 {[%clk 0:01:30]}  Nxe4 {[%clk 0:00:59]} 22. e6 {[%clk 0:01:31]}  Nf6 {[%clk 0:00:49]} 23. exf7+ {[%clk 0:00:56]}  Kxf7 {[%clk 0:00:48]} 24. Nh3 {[%clk 0:00:57]}  Re8 {[%clk 0:00:44]} 25. Ng5+ {[%clk 0:00:57]}  Kg6 {[%clk 0:00:44]} 26. Nf3 {[%clk 0:00:52]}  Kf5 {[%clk 0:00:37]} 27. Rf1 {[%clk 0:00:33]}  Kg6 {[%clk 0:00:18]} 28. Kd2 {[%clk 0:00:24]}  Ne4+ {[%clk 0:00:17]} 29. Kd3 {[%clk 0:00:25]}  Nf6 {[%clk 0:00:15]} 30. Kd4 {[%clk 0:00:17]}  b6 {[%clk 0:00:15]} 31. Ne5+ {[%clk 0:00:16]}  Kh7 {[%clk 0:00:15]} 32. Nxc6 {[%clk 0:00:15]}  Re2 {[%clk 0:00:16]} 33. Nxa7 {[%clk 0:00:11]}  Rxg2 {[%clk 0:00:16]} 34. a4 {[%clk 0:00:07]}  Rxc2 {[%clk 0:00:14]} 35. a5 {[%clk 0:00:07]}  bxa5 {[%clk 0:00:14]} 36. bxa5 {[%clk 0:00:08]}  Rxh2 {[%clk 0:00:15]} 37. Ra1 {[%clk 0:00:05]}  Rd2+ {[%clk 0:00:13]} 38. Ke3 {[%clk 0:00:03]}  Rd7 {[%clk 0:00:11]} 39. Nc6 {[%clk 0:00:03]}  Rc7 {[%clk 0:00:10]} 40. a6 {[%clk 0:00:02]}  Nd5+ {[%clk 0:00:07]} 41. Ke4 {[%clk 0:00:02]}  Nb6 {[%clk 0:00:07]} 42. Ne5 {[%clk 0:00:02]}  Re7 {[%clk 0:00:06]} 43. Kf5 {[%clk 0:00:01]}  Re8 {[%clk 0:00:04]} 44. Kf4 {[%clk 0:00:01]}  Nd5+ {[%clk 0:00:04]} 45. Ke4 {[%clk 0:00:01]}  Nc3+ {[%clk 0:00:03]} 46. Kd4 {[%clk 0:00:01]}  Nb5+ {[%clk 0:00:04]} 47. Kd5 {[%clk 0:00:01]}  Nc7+ {[%clk 0:00:05]} 48. Kd6 {[%clk 0:00:02]}  Nxa6 {[%clk 0:00:05]} 49. Rxa6 {[%clk 0:00:01]}  h4 {[%clk 0:00:05]} 50. Ra4 {[%clk 0:00:00]}  g5 {[%clk 0:00:05]} 0-1

[Event "January 2 Late 2024"]
[Site "https://www.chess.com"]
[Date "2024.01.02"]
[Round "10"]
[White "Gasparyan, David"]
[Black "Jakubowski, Krzysztof"]
[Result "0-1"]
[Board "49"]
[TimeControl "180+1"]
[WhiteFideId "13311980"]
[BlackFideId "1112848"]
[WhiteElo "2547"]
[BlackElo "2662"]
[WhiteTeam "USA"]
[BlackTeam "POL"]
[WhiteClock "0:01:11"]
[BlackClock "0:01:31"]

1. Nf3 {[%clk 0:02:57]}  Nf6 {[%clk 0:02:58]} 2. g3 {[%clk 0:02:58]}  d5 {[%clk 0:02:57]} 3. Bg2 {[%clk 0:02:58]}  Bg4 {[%clk 0:02:57]} 4. O-O {[%clk 0:02:58]}  Nbd7 {[%clk 0:02:56]} 5. d3 {[%clk 0:02:57]}  c6 {[%clk 0:02:55]} 6. Nbd2 {[%clk 0:02:58]}  e5 {[%clk 0:02:54]} 7. e4 {[%clk 0:02:58]}  dxe4 {[%clk 0:02:53]} 8. dxe4 {[%clk 0:02:57]}  Bc5 {[%clk 0:02:52]} 9. h3 {[%clk 0:02:56]}  Bxf3 {[%clk 0:02:51]} 10. Qxf3 {[%clk 0:02:55]}  O-O {[%clk 0:02:50]} 11. c3 {[%clk 0:02:49]}  a5 {[%clk 0:02:49]} 12. Nc4 {[%clk 0:02:49]}  Qc7 {[%clk 0:02:47]} 13. Be3 {[%clk 0:02:49]}  a4 {[%clk 0:02:44]} 14. Rad1 {[%clk 0:02:46]}  Rfd8 {[%clk 0:02:41]} 15. b4 {[%clk 0:02:40]}  axb3 {[%clk 0:02:31]} 16. axb3 {[%clk 0:02:40]}  b5 {[%clk 0:02:29]} 17. b4 {[%clk 0:02:29]}  Bxe3 {[%clk 0:02:10]} 18. Nxe3 {[%clk 0:02:29]}  g6 {[%clk 0:02:08]} 19. h4 {[%clk 0:02:12]}  Kg7 {[%clk 0:01:59]} 20. Bh3 {[%clk 0:02:10]}  Nb6 {[%clk 0:01:55]} 21. Kg2 {[%clk 0:02:02]}  h5 {[%clk 0:01:51]} 22. Rxd8 {[%clk 0:01:46]}  Rxd8 {[%clk 0:01:49]} 23. Rd1 {[%clk 0:01:45]}  Rxd1 {[%clk 0:01:43]} 24. Nxd1 {[%clk 0:01:44]}  Qd6 {[%clk 0:01:43]} 25. Ne3 {[%clk 0:01:35]}  Qd2 {[%clk 0:01:41]} 26. Bc8 {[%clk 0:01:29]}  Nxc8 {[%clk 0:01:39]} 27. Kg1 {[%clk 0:01:20]}  Nb6 {[%clk 0:01:38]} 28. Nf1 {[%clk 0:01:20]}  Qc2 {[%clk 0:01:36]} 29. Ne3 {[%clk 0:01:15]}  Qxe4 {[%clk 0:01:35]} 30. Qd1 {[%clk 0:01:15]}  Nbd5 {[%clk 0:01:35]} 31. Ng2 {[%clk 0:01:14]}  Nxc3 {[%clk 0:01:33]} 32. Qd6 {[%clk 0:01:12]}  Ne2+ {[%clk 0:01:32]} 33. Kh2 {[%clk 0:01:11]}  Ng4+ {[%clk 0:01:31]} 0-1

[Event "January 2 Late 2024"]
[Site "https://www.chess.com"]
[Date "2024.01.02"]
[Round "10"]
[White "Dobrijevic, Milan"]
[Black "Korchynskyi, Mykola"]
[Result "1-0"]
[Board "53"]
[TimeControl "180+1"]
[WhiteFideId "931632"]
[BlackFideId "34138005"]
[WhiteElo "2463"]
[BlackElo "2594"]
[WhiteTeam "SRB"]
[BlackTeam "UKR"]
[WhiteClock "0:00:25"]
[BlackClock "0:00:05"]

1. e4 {[%clk 0:02:59]}  e6 {[%clk 0:03:00]} 2. d4 {[%clk 0:02:59]}  d5 {[%clk 0:03:00]} 3. Nc3 {[%clk 0:02:59]}  Bb4 {[%clk 0:02:58]} 4. e5 {[%clk 0:02:59]}  c5 {[%clk 0:02:58]} 5. a3 {[%clk 0:02:59]}  Bxc3+ {[%clk 0:02:59]} 6. bxc3 {[%clk 0:03:00]}  Ne7 {[%clk 0:02:59]} 7. h4 {[%clk 0:03:01]}  Qc7 {[%clk 0:02:58]} 8. h5 {[%clk 0:02:59]}  h6 {[%clk 0:02:57]} 9. Rh3 {[%clk 0:02:51]}  Nbc6 {[%clk 0:02:55]} 10. Qg4 {[%clk 0:02:49]}  cxd4 {[%clk 0:02:52]} 11. cxd4 {[%clk 0:02:41]}  Nf5 {[%clk 0:02:51]} 12. Nf3 {[%clk 0:02:30]}  Nb4 {[%clk 0:02:44]} 13. axb4 {[%clk 0:02:21]}  Qc3+ {[%clk 0:02:41]} 14. Kd1 {[%clk 0:02:19]}  Qxa1 {[%clk 0:02:42]} 15. Bd3 {[%clk 0:02:17]}  Rg8 {[%clk 0:02:37]} 16. Qf4 {[%clk 0:01:52]}  a5 {[%clk 0:02:35]} 17. g4 {[%clk 0:01:43]}  Ne7 {[%clk 0:02:35]} 18. b5 {[%clk 0:01:31]}  Bd7 {[%clk 0:02:25]} 19. g5 {[%clk 0:01:29]}  Nf5 {[%clk 0:02:25]} 20. Bxf5 {[%clk 0:01:16]}  exf5 {[%clk 0:02:24]} 21. g6 {[%clk 0:01:02]}  fxg6 {[%clk 0:02:18]} 22. e6 {[%clk 0:00:56]}  Bxe6 {[%clk 0:02:07]} 23. Qd6 {[%clk 0:00:53]}  Bd7 {[%clk 0:01:03]} 24. Ne5 {[%clk 0:00:43]}  O-O-O {[%clk 0:01:01]} 25. b6 {[%clk 0:00:31]}  Qxd4+ {[%clk 0:00:55]} 26. Rd3 {[%clk 0:00:30]}  Qg4+ {[%clk 0:00:44]} 27. Nxg4 {[%clk 0:00:28]}  fxg4 {[%clk 0:00:05]} 28. Qc7# {[%clk 0:00:25]} 1-0

[Event "January 2 Late 2024"]
[Site "https://www.chess.com"]
[Date "2024.01.02"]
[Round "10"]
[White "Federzoni, Enzo"]
[Black "Korchmar, Vasiliy"]
[Result "0-1"]
[Board "54"]
[TimeControl "180+1"]
[WhiteFideId "2173301"]
[BlackFideId "24131750"]
[WhiteElo "2467"]
[BlackElo "2722"]
[WhiteTeam "BRA"]
[BlackTeam "RUS"]
[WhiteClock "0:00:02"]
[BlackClock "0:00:02"]

1. e4 {[%clk 0:03:00]}  c5 {[%clk 0:02:59]} 2. Nf3 {[%clk 0:03:00]}  d6 {[%clk 0:02:59]} 3. d4 {[%clk 0:03:01]}  cxd4 {[%clk 0:03:00]} 4. Nxd4 {[%clk 0:03:01]}  Nf6 {[%clk 0:03:00]} 5. Nc3 {[%clk 0:03:02]}  Nc6 {[%clk 0:03:00]} 6. Bg5 {[%clk 0:03:02]}  Bd7 {[%clk 0:03:00]} 7. Qd2 {[%clk 0:03:02]}  a6 {[%clk 0:02:59]} 8. O-O-O {[%clk 0:03:00]}  e6 {[%clk 0:02:47]} 9. f4 {[%clk 0:03:00]}  Be7 {[%clk 0:02:46]} 10. Nf3 {[%clk 0:02:59]}  b5 {[%clk 0:02:44]} 11. Bxf6 {[%clk 0:02:58]}  gxf6 {[%clk 0:02:43]} 12. f5 {[%clk 0:02:48]}  Qb6 {[%clk 0:02:42]} 13. Kb1 {[%clk 0:02:48]}  O-O-O {[%clk 0:02:39]} 14. g3 {[%clk 0:02:48]}  b4 {[%clk 0:02:26]} 15. Ne2 {[%clk 0:02:47]}  e5 {[%clk 0:02:26]} 16. Nc1 {[%clk 0:02:45]}  Kb8 {[%clk 0:02:18]} 17. Bc4 {[%clk 0:02:44]}  Rhf8 {[%clk 0:02:07]} 18. Qh6 {[%clk 0:02:42]}  Na5 {[%clk 0:02:01]} 19. Bb3 {[%clk 0:02:40]}  Bc6 {[%clk 0:01:57]} 20. Rhe1 {[%clk 0:02:36]}  Rc8 {[%clk 0:01:50]} 21. Qxh7 {[%clk 0:02:32]}  Nxb3 {[%clk 0:01:49]} 22. axb3 {[%clk 0:02:24]}  Qf2 {[%clk 0:01:49]} 23. Nd2 {[%clk 0:02:16]}  d5 {[%clk 0:01:43]} 24. Qh5 {[%clk 0:01:48]}  dxe4 {[%clk 0:01:38]} 25. Re2 {[%clk 0:01:43]}  Qc5 {[%clk 0:01:35]} 26. Nc4 {[%clk 0:01:31]}  a5 {[%clk 0:01:18]} 27. h4 {[%clk 0:01:13]}  a4 {[%clk 0:01:18]} 28. Qg4 {[%clk 0:01:11]}  Rfd8 {[%clk 0:01:07]} 29. Rxd8 {[%clk 0:01:08]}  Rxd8 {[%clk 0:01:07]} 30. Re1 {[%clk 0:00:53]}  Bd5 {[%clk 0:00:39]} 31. Qe2 {[%clk 0:00:51]}  Rc8 {[%clk 0:00:36]} 32. h5 {[%clk 0:00:42]}  Bf8 {[%clk 0:00:32]} 33. Qe3 {[%clk 0:00:34]}  axb3 {[%clk 0:00:13]} 34. cxb3 {[%clk 0:00:20]}  Bxc4 {[%clk 0:00:07]} 35. Qxc5 {[%clk 0:00:19]}  Rxc5 {[%clk 0:00:05]} 36. bxc4 {[%clk 0:00:19]}  Rxc4 {[%clk 0:00:06]} 37. Nb3 {[%clk 0:00:16]}  Bh6 {[%clk 0:00:05]} 38. Re2 {[%clk 0:00:10]}  Kc7 {[%clk 0:00:04]} 39. Rc2 {[%clk 0:00:10]}  Rxc2 {[%clk 0:00:03]} 40. Kxc2 {[%clk 0:00:11]}  Kc6 {[%clk 0:00:03]} 41. Na5+ {[%clk 0:00:05]}  Kd5 {[%clk 0:00:04]} 42. Nb3 {[%clk 0:00:05]}  Kc4 {[%clk 0:00:03]} 43. g4 {[%clk 0:00:05]}  e3 {[%clk 0:00:02]} 44. Nc1 {[%clk 0:00:04]}  Kd4 {[%clk 0:00:02]} 45. Ne2+ {[%clk 0:00:04]}  Ke4 {[%clk 0:00:02]} 46. b3 {[%clk 0:00:05]}  Kf3 {[%clk 0:00:02]} 47. Kd3 {[%clk 0:00:05]}  Kxg4 {[%clk 0:00:03]} 48. Kc4 {[%clk 0:00:03]}  Kxh5 {[%clk 0:00:03]} 49. Kxb4 {[%clk 0:00:03]}  Kg4 {[%clk 0:00:03]} 50. Kc3 {[%clk 0:00:04]}  Kf3 {[%clk 0:00:04]} 51. Kd3 {[%clk 0:00:05]}  Bf8 {[%clk 0:00:04]} 52. Nc3 {[%clk 0:00:04]}  Bb4 {[%clk 0:00:03]} 53. Nd1 {[%clk 0:00:01]}  e2 {[%clk 0:00:02]} 54. Nf2 {[%clk 0:00:02]}  e1=Q {[%clk 0:00:02]} 55. Ng4 {[%clk 0:00:02]}  Qe2# {[%clk 0:00:02]} 0-1

[Event "January 2 Late 2024"]
[Site "https://www.chess.com"]
[Date "2024.01.02"]
[Round "10"]
[White "Schnaider, Ilan"]
[Black "Makaraci, Tunahan"]
[Result "0-1"]
[Board "55"]
[TimeControl "180+1"]
[WhiteFideId "169013"]
[BlackFideId "6356559"]
[WhiteElo "2712"]
[BlackElo "2531"]
[WhiteTeam "ARG"]
[BlackTeam "TUR"]
[WhiteClock "0:00:05"]
[BlackClock "0:00:53"]

1. e4 {[%clk 0:03:00]}  c5 {[%clk 0:02:56]} 2. Nf3 {[%clk 0:03:00]}  Nc6 {[%clk 0:02:55]} 3. Bb5 {[%clk 0:02:59]}  d6 {[%clk 0:02:56]} 4. O-O {[%clk 0:02:58]}  Bd7 {[%clk 0:02:55]} 5. Re1 {[%clk 0:02:58]}  Nf6 {[%clk 0:02:55]} 6. c3 {[%clk 0:02:57]}  a6 {[%clk 0:02:55]} 7. Bf1 {[%clk 0:02:57]}  Bg4 {[%clk 0:02:56]} 8. d4 {[%clk 0:02:57]}  cxd4 {[%clk 0:02:56]} 9. cxd4 {[%clk 0:02:57]}  e5 {[%clk 0:02:57]} 10. d5 {[%clk 0:02:57]}  Nd4 {[%clk 0:02:57]} 11. Be3 {[%clk 0:02:57]}  Nxf3+ {[%clk 0:02:56]} 12. gxf3 {[%clk 0:02:57]}  Bd7 {[%clk 0:02:57]} 13. Qb3 {[%clk 0:02:53]}  Be7 {[%clk 0:02:56]} 14. Bg2 {[%clk 0:02:53]}  O-O {[%clk 0:02:56]} 15. Nd2 {[%clk 0:02:52]}  Nh5 {[%clk 0:02:55]} 16. Nf1 {[%clk 0:02:44]}  Bg5 {[%clk 0:02:55]} 17. Ng3 {[%clk 0:02:32]}  Bxe3 {[%clk 0:02:43]} 18. fxe3 {[%clk 0:02:24]}  Nxg3 {[%clk 0:02:28]} 19. hxg3 {[%clk 0:02:24]}  Qg5 {[%clk 0:02:29]} 20. Kf2 {[%clk 0:02:22]}  f5 {[%clk 0:02:29]} 21. exf5 {[%clk 0:02:02]}  Rxf5 {[%clk 0:02:26]} 22. Qxb7 {[%clk 0:01:58]}  Rd8 {[%clk 0:02:26]} 23. e4 {[%clk 0:01:57]}  Rf6 {[%clk 0:02:20]} 24. Qxa6 {[%clk 0:01:43]}  Rdf8 {[%clk 0:02:08]} 25. Re3 {[%clk 0:01:39]}  Rg6 {[%clk 0:02:03]} 26. Rg1 {[%clk 0:00:28]}  Qxg3+ {[%clk 0:01:58]} 27. Kf1 {[%clk 0:00:27]}  Bh3 {[%clk 0:01:39]} 28. Qe2 {[%clk 0:00:27]}  Qh2 {[%clk 0:01:37]} 29. Qf2 {[%clk 0:00:18]}  Rxg2 {[%clk 0:01:34]} 30. Rxg2 {[%clk 0:00:18]}  Qh1+ {[%clk 0:01:31]} 31. Qg1 {[%clk 0:00:14]}  Bxg2+ {[%clk 0:01:29]} 32. Kf2 {[%clk 0:00:14]}  Qxg1+ {[%clk 0:01:15]} 33. Kxg1 {[%clk 0:00:13]}  Rxf3 {[%clk 0:01:14]} 34. Re2 {[%clk 0:00:04]}  Bh3 {[%clk 0:01:12]} 35. b4 {[%clk 0:00:02]}  Rf1+ {[%clk 0:01:11]} 36. Kh2 {[%clk 0:00:02]}  Bg4 {[%clk 0:01:11]} 37. Rb2 {[%clk 0:00:02]}  Bf3 {[%clk 0:00:56]} 38. b5 {[%clk 0:00:02]}  Bxe4 {[%clk 0:00:56]} 39. b6 {[%clk 0:00:03]}  Bxd5 {[%clk 0:00:56]} 40. b7 {[%clk 0:00:03]}  Bxb7 {[%clk 0:00:56]} 41. Rxb7 {[%clk 0:00:04]}  Rf2+ {[%clk 0:00:56]} 42. Kg3 {[%clk 0:00:05]}  Rxa2 {[%clk 0:00:57]} 43. Rd7 {[%clk 0:00:05]}  Rd2 {[%clk 0:00:56]} 44. Kg4 {[%clk 0:00:05]}  h6 {[%clk 0:00:55]} 45. Kf5 {[%clk 0:00:05]}  Kh7 {[%clk 0:00:55]} 46. Ke6 {[%clk 0:00:06]}  e4 {[%clk 0:00:55]} 47. Kf7 {[%clk 0:00:06]}  e3 {[%clk 0:00:53]} 48. Kf8 {[%clk 0:00:06]}  Rf2+ {[%clk 0:00:53]} 49. Ke8 {[%clk 0:00:07]}  e2 {[%clk 0:00:53]} 50. Re7 {[%clk 0:00:08]}  d5 {[%clk 0:00:53]} 51. Kd7 {[%clk 0:00:07]}  d4 {[%clk 0:00:53]} 52. Rxe2 {[%clk 0:00:05]}  Rxe2 {[%clk 0:00:53]} 0-1

[Event "January 2 Late 2024"]
[Site "https://www.chess.com"]
[Date "2024.01.02"]
[Round "10"]
[White "Lewtak, Damian"]
[Black "Weisz, Bryan"]
[Result "0-1"]
[Board "56"]
[TimeControl "180+1"]
[WhiteFideId "1141724"]
[BlackFideId "30934133"]
[WhiteElo "2703"]
[BlackElo "2530"]
[WhiteTeam "POL"]
[BlackTeam "USA"]
[WhiteClock "0:00:37"]
[BlackClock "0:00:30"]

1. e4 {[%clk 0:02:58]}  e5 {[%clk 0:02:59]} 2. Nf3 {[%clk 0:02:58]}  Nc6 {[%clk 0:02:59]} 3. Bb5 {[%clk 0:02:59]}  a6 {[%clk 0:02:58]} 4. Bxc6 {[%clk 0:02:59]}  bxc6 {[%clk 0:02:56]} 5. O-O {[%clk 0:03:00]}  d6 {[%clk 0:02:47]} 6. c3 {[%clk 0:02:59]}  f5 {[%clk 0:02:44]} 7. Re1 {[%clk 0:02:51]}  fxe4 {[%clk 0:02:44]} 8. Rxe4 {[%clk 0:02:50]}  Nf6 {[%clk 0:02:44]} 9. Re1 {[%clk 0:02:51]}  Be7 {[%clk 0:02:35]} 10. d4 {[%clk 0:02:37]}  e4 {[%clk 0:02:34]} 11. Nfd2 {[%clk 0:02:18]}  d5 {[%clk 0:02:31]} 12. h3 {[%clk 0:02:18]}  O-O {[%clk 0:02:19]} 13. Nf1 {[%clk 0:02:19]}  Bd6 {[%clk 0:01:58]} 14. Be3 {[%clk 0:02:19]}  Qe8 {[%clk 0:01:44]} 15. Nbd2 {[%clk 0:01:57]}  Nh5 {[%clk 0:01:40]} 16. c4 {[%clk 0:01:53]}  Nf4 {[%clk 0:01:38]} 17. c5 {[%clk 0:01:22]}  Qg6 {[%clk 0:01:37]} 18. Ng3 {[%clk 0:01:22]}  Nxh3+ {[%clk 0:01:27]} 19. gxh3 {[%clk 0:01:12]}  Bxg3 {[%clk 0:01:26]} 20. fxg3 {[%clk 0:01:12]}  Qxg3+ {[%clk 0:01:24]} 21. Kh1 {[%clk 0:01:13]}  Qxh3+ {[%clk 0:01:19]} 22. Kg1 {[%clk 0:01:13]}  Bg4 {[%clk 0:01:02]} 23. Re2 {[%clk 0:01:10]}  Rf6 {[%clk 0:00:45]} 24. Nf1 {[%clk 0:00:52]}  Rg6 {[%clk 0:00:31]} 25. Kf2 {[%clk 0:00:38]}  Rf8+ {[%clk 0:00:30]} 26. Ke1 {[%clk 0:00:37]}  Rxf1+ {[%clk 0:00:30]} 27. Kd2 {[%clk 0:00:37]}  Rxd1+ {[%clk 0:00:30]} 0-1

[Event "January 2 Late 2024"]
[Site "https://www.chess.com"]
[Date "2024.01.02"]
[Round "10"]
[White "Osmak, Yuliia"]
[Black "Blanco Ronquillo, Humberto L."]
[Result "1/2-1/2"]
[Board "58"]
[TimeControl "180+1"]
[WhiteFideId "14101602"]
[BlackFideId "3504239"]
[WhiteElo "2517"]
[BlackElo "2689"]
[WhiteTeam "UKR"]
[BlackTeam "CUB"]
[WhiteClock "0:00:12"]
[BlackClock "0:00:34"]

1. Nf3 {[%clk 0:03:00]}  d5 {[%clk 0:02:59]} 2. g3 {[%clk 0:03:01]}  Nf6 {[%clk 0:03:00]} 3. Bg2 {[%clk 0:03:01]}  c6 {[%clk 0:03:00]} 4. O-O {[%clk 0:03:02]}  Bg4 {[%clk 0:03:00]} 5. h3 {[%clk 0:03:02]}  Bxf3 {[%clk 0:03:00]} 6. Bxf3 {[%clk 0:03:02]}  Nbd7 {[%clk 0:02:59]} 7. d3 {[%clk 0:02:59]}  e5 {[%clk 0:02:57]} 8. Bg2 {[%clk 0:02:59]}  Bd6 {[%clk 0:02:57]} 9. c4 {[%clk 0:02:58]}  O-O {[%clk 0:02:55]} 10. cxd5 {[%clk 0:02:56]}  Nxd5 {[%clk 0:02:52]} 11. Nc3 {[%clk 0:02:56]}  Nc7 {[%clk 0:02:49]} 12. a3 {[%clk 0:02:50]}  Re8 {[%clk 0:02:46]} 13. b4 {[%clk 0:02:49]}  a6 {[%clk 0:02:45]} 14. Bb2 {[%clk 0:02:48]}  Ne6 {[%clk 0:02:46]} 15. Ne4 {[%clk 0:02:40]}  Bc7 {[%clk 0:02:45]} 16. Rc1 {[%clk 0:02:37]}  Nb6 {[%clk 0:02:45]} 17. e3 {[%clk 0:02:27]}  Qd7 {[%clk 0:02:36]} 18. Qb3 {[%clk 0:02:22]}  Nd5 {[%clk 0:02:33]} 19. Rfd1 {[%clk 0:02:18]}  h6 {[%clk 0:02:32]} 20. Nc5 {[%clk 0:02:14]}  Nxc5 {[%clk 0:02:32]} 21. bxc5 {[%clk 0:02:11]}  Rab8 {[%clk 0:02:30]} 22. Rc4 {[%clk 0:02:00]}  Kh8 {[%clk 0:02:08]} 23. h4 {[%clk 0:01:59]}  f5 {[%clk 0:01:56]} 24. e4 {[%clk 0:01:58]}  Nf6 {[%clk 0:01:55]} 25. Bh3 {[%clk 0:01:54]}  Ng4 {[%clk 0:01:52]} 26. exf5 {[%clk 0:01:53]}  Nf6 {[%clk 0:01:49]} 27. g4 {[%clk 0:01:45]}  Nd5 {[%clk 0:01:48]} 28. Bc1 {[%clk 0:01:41]}  Nf4 {[%clk 0:01:32]} 29. Bxf4 {[%clk 0:01:39]}  exf4 {[%clk 0:01:33]} 30. Re4 {[%clk 0:01:37]}  Rbd8 {[%clk 0:01:27]} 31. Bg2 {[%clk 0:01:32]}  Rxe4 {[%clk 0:01:24]} 32. Bxe4 {[%clk 0:01:32]}  Be5 {[%clk 0:01:24]} 33. Kg2 {[%clk 0:01:28]}  f3+ {[%clk 0:01:19]} 34. Kxf3 {[%clk 0:01:27]}  Bd4 {[%clk 0:01:20]} 35. Qc4 {[%clk 0:01:20]}  Qe7 {[%clk 0:01:18]} 36. Rh1 {[%clk 0:01:15]}  Bxc5 {[%clk 0:01:15]} 37. g5 {[%clk 0:01:12]}  Qe5 {[%clk 0:01:09]} 38. Qf7 {[%clk 0:01:07]}  Rf8 {[%clk 0:01:04]} 39. Qg6 {[%clk 0:01:01]}  Bd6 {[%clk 0:00:54]} 40. Kg2 {[%clk 0:00:55]}  Qf4 {[%clk 0:00:46]} 41. Kf1 {[%clk 0:00:21]}  Qg4 {[%clk 0:00:40]} 42. Rg1 {[%clk 0:00:19]}  Qd1+ {[%clk 0:00:39]} 43. Kg2 {[%clk 0:00:19]}  Qg4+ {[%clk 0:00:40]} 44. Kf1 {[%clk 0:00:17]}  Qd1+ {[%clk 0:00:34]} 45. Kg2 {[%clk 0:00:17]}  Qg4+ {[%clk 0:00:34]} 46. Kf1 {[%clk 0:00:12]} 1/2-1/2

[Event "January 2 Late 2024"]
[Site "https://www.chess.com"]
[Date "2024.01.02"]
[Round "10"]
[White "Banzea, Alexandru-Bogdan"]
[Black "Salazar Farias, Luis German"]
[Result "0-1"]
[Board "59"]
[TimeControl "180+1"]
[WhiteFideId "1232622"]
[BlackFideId "3902170"]
[WhiteElo "2664"]
[BlackElo "2517"]
[WhiteTeam "ROU"]
[BlackTeam "VEN"]
[WhiteClock "0:00:00"]
[BlackClock "0:01:00"]

1. d4 {[%clk 0:03:00]}  Nf6 {[%clk 0:02:59]} 2. Nc3 {[%clk 0:03:01]}  d5 {[%clk 0:02:59]} 3. Bf4 {[%clk 0:03:01]}  c5 {[%clk 0:02:59]} 4. e3 {[%clk 0:03:02]}  cxd4 {[%clk 0:02:57]} 5. exd4 {[%clk 0:03:03]}  a6 {[%clk 0:02:57]} 6. Bd3 {[%clk 0:03:02]}  Nc6 {[%clk 0:02:58]} 7. Nge2 {[%clk 0:03:03]}  Nb4 {[%clk 0:02:58]} 8. f3 {[%clk 0:03:00]}  e6 {[%clk 0:02:53]} 9. h4 {[%clk 0:03:00]}  Be7 {[%clk 0:02:53]} 10. h5 {[%clk 0:02:50]}  h6 {[%clk 0:02:53]} 11. g4 {[%clk 0:02:40]}  Bd7 {[%clk 0:02:48]} 12. a3 {[%clk 0:02:36]}  Nxd3+ {[%clk 0:02:45]} 13. Qxd3 {[%clk 0:02:36]}  b5 {[%clk 0:02:41]} 14. O-O-O {[%clk 0:02:36]}  b4 {[%clk 0:02:33]} 15. axb4 {[%clk 0:02:37]}  Bxb4 {[%clk 0:02:33]} 16. Be5 {[%clk 0:02:33]}  Qa5 {[%clk 0:02:29]} 17. Qe3 {[%clk 0:01:54]}  Bb5 {[%clk 0:02:18]} 18. Kb1 {[%clk 0:01:12]}  Ra7 {[%clk 0:01:51]} 19. Bxf6 {[%clk 0:01:08]}  gxf6 {[%clk 0:01:48]} 20. Nxd5 {[%clk 0:01:08]}  Bxe2 {[%clk 0:01:38]} 21. Nxf6+ {[%clk 0:00:33]}  Ke7 {[%clk 0:01:34]} 22. Qxe2 {[%clk 0:00:15]}  Kxf6 {[%clk 0:01:34]} 23. f4 {[%clk 0:00:05]}  Rb7 {[%clk 0:01:19]} 24. Rh3 {[%clk 0:00:03]}  Bc3 {[%clk 0:00:59]} 25. Qe5+ {[%clk 0:00:00]}  Ke7 {[%clk 0:01:00]} 0-1